[Event "DPEM German Cup 2022"]
[Site "Magdeburg"]
[Date "2022.08.19"]
[Round "4.7"]
[White "Pahl, Theis"]
[Black "Kist, Eike Andreas"]
[Result "0-1"]
[ECO "B22"]
[WhiteElo "2246"]
[BlackElo "1697"]
[Annotator "TA"]
[PlyCount "129"]
[EventDate "2022.08.10"]
[EventType "k.o."]
[EventCountry "GER"]
[SourceTitle "playchess.com"]
[Source "ChessBase"]
[SourceQuality "1"]
[TimeControl "40/5400+30:900+30"]

{[%evp 19,129,22,28,4,43,47,67,24,26,27,46,36,26,23,41,0,10,12,11,0,28,0,23,25,33,9,50,43,47,37,68,66,62,66,92,60,58,66,125,31,85,47,137,136,291,139,575,571,529,343,321,234,216,0,0,0,0,-82,0,-208,-195,-507,-519,-714,-714,-713,-713,-690,-616,-700,-693,-680,-595,-609,-426,-422,-394,-401,-400,-400,-393,-386,-379,-367,-352,-422,-408,-409,-397,-409,-417,-410,-404,-381,0,-436,-411,-531,-518,-483,-483,-920,-900,-939,-942,-889,-862,-29970,-6211,-6103,29989,29987]} 1. e4 {[%emt 0:00:02][%cal Be2e4,Be4e5,Be5d6][%mdl 32]} c5 {[%emt 0:00:06]} 2. c3 {[%emt 0:00:18]} Nf6 {[%emt 0:00:05]} 3. e5 {[%emt 0:00:16]} Nd5 {[%emt 0:00:06]} 4. Bc4 {[%emt 0:00:41]} Nb6 {[%emt 0:00:23]} 5. Bb3 {[%emt 0:00:05]} d6 {[%emt 0:00:28]} 6. exd6 {[%emt 0:00:58]} e6 {[%emt 0:00:25]} 7. Nf3 {[%emt 0:02:32]} Nc6 {[%emt 0:00:56][%cal Bb8c6,Bc6b4,Bb4d5][%mdl 32]} 8. d4 {[%emt 0:03:00]} cxd4 {[%emt 0:03:33]} 9. cxd4 {[%emt 0:01:02]} Bxd6 {[%emt 0:01:21]} 10. O-O {[%emt 0:01:56]} O-O {[%emt 0:02:16]} 11. Re1 {[%emt 0:00:26] B22: Sicilian: 2 c3.} Nb4 {[%emt 0:05:38]} 12. Nc3 {[%emt 0:01:44]} Bd7 {[%emt 0:03:19]} 13. a3 {[%emt 0:00:33] White is slightly better.} N4d5 {[%emt 0:00:22]} 14. Ne4 {[%emt 0:02:01] [#]} Bf4 $146 {[%emt 0:06:10]} ({Predecessor:} 14... Bc6 15. Ne5 Be7 16. Nc5 Bxc5 17. dxc5 Nd7 18. Nxd7 Qxd7 19. Bxd5 Bxd5 20. b4 Qc6 {0-1 (45) Goryachkina,A (2593)-Jacobson,B (2491) Chess.com INT 2021}) 15. Bxf4 {[%emt 0:07:28]} Nxf4 {[%emt 0:00:10]} 16. Ne5 {[%emt 0:00:28]} Ng6 {[%emt 0:06:50]} 17. Qd3 {[%emt 0:03:01]} Nxe5 {[%emt 0:13:21]} 18. dxe5 {[%emt 0:00:04]} Bc6 {[%emt 0:00:16]} 19. Nd6 {[%emt 0:13:02]} Qg5 {[%emt 0:02:21][%csl Gc6][%cal Rg5g2]} 20. f3 {[%emt 0:02:04][%cal Bf2f3,Bf3f4][%mdl 32]} Nd5 {[%emt 0:11:22]} 21. Bc2 $40 {[%emt 0:03:08][%csl Gc2][%cal Rd3h7][%mdl 128] Black needs to defend precisely.} Qh6 {[%emt 0:01:12]} 22. g3 {[%emt 0:01:37]} Ne7 {[%emt 0:03:08]} 23. f4 {[%emt 0:06:09]} Rad8 {[%emt 0:10:40]} 24. Qe2 {[%emt 0:01:25]} Nc8 {[%emt 0:05:09]} 25. Ne4 {[%emt 0:01:37]} Ne7 {[%emt 0:02:29]} 26. Rad1 {[%emt 0:05:01]} Nf5 {[%emt 0:00:35]} 27. Rxd8 {[%emt 0:03:27]} Rxd8 {[%emt 0:00:09]} 28. Rd1 {[%emt 0:00:53][%cal Be1d1,Bd1d2,Bd2d6][%mdl 32]} Rf8 {[%emt 0:05:01]} (28... Rc8 $14) 29. Qf2 {[%emt 0:03:12]} (29. Ng5 $1 $16 Re8 30. Be4) 29... Qg6 {[%emt 0:02:49]} (29... Qh5 $14 30. Rd2 Rc8) 30. Rd2 {[%emt 0:03:37]} h5 {[%emt 0:01:19]} ({Black should play} 30... Qh5 $14) 31. Ng5 $16 {[%emt 0:02:11]} Qh6 $2 {[%emt 0:01:11]} (31... Re8 $16) 32. h4 {[%emt 0:01:45]} (32. Qxa7 $18 {is more deadly.} g6 33. Be4 Bxe4 34. Nxe4) 32... Rc8 $2 {[%emt 0:01:26][%mdl 8192]} (32... g6 $16 33. Bxf5 gxf5 34. Qxa7 Qg6) 33. Bxf5 $18 {[%emt 0:01:07]} exf5 {[%emt 0:00:08]} 34. Rd6 {[%emt 0:00:36]} g6 {[%emt 0:00:05]} 35. Qd4 {[%emt 0:07:23]} (35. Qxa7 Qf8 36. Qd4 Qe7 $18) 35... Qf8 {[%emt 0:02:16]} 36. e6 $2 {[%emt 0:09:12]} ({Don't play} 36. Qxa7 $6 Qe7 $16) (36. Qc4 $18 {Hoping for Rxg6+.} b5 37. Qc5 (37. Rxg6+ Kh8 $11)) 36... f6 $11 {[%emt 0:00:31]} 37. Nf7 {[%emt 0:03:54]} Qe7 {[%emt 0:02:14]} 38. Nd8 {[%emt 0:03:15] [#]} (38. Rd8+ $11 {keeps the balance.} Rxd8 39. Nxd8) 38... Bb5 {[%emt 0:03:26]} (38... Be8 $1 $17 {And now ...Rc1+ would win.} 39. Qd5 Kf8) 39. a4 $2 {[%emt 0:02:29] [#]} (39. Qd5 $1 $11 {and White is okay.}) 39... Bxa4 $1 $19 {[%emt 0:00:23][%mdl 512]} 40. Qd5 $2 {[%emt 0:00:38]} (40. Qb4 {is more resistant.}) (40. Rd5 Rc1+) 40... Rc1+ {[%emt 0:04:53]} 41. Kf2 {[%emt 0:15:45][%cal Od6d7]} Rd1 {[%emt 0:15:52]} 42. Qxd1 {[%emt 0:00:00]} Bxd1 {[%emt 0:00:00]} 43. Rxd1 {[%emt 0:00:00][%mdl 4096] Endgame KQ-KRN} Kf8 {[%emt 0:00:00]} 44. Rd7 {[%emt 0:00:00]} Qc5+ {[%emt 0:00:00]} 45. Ke2 {[%emt 0:00:00]} Ke8 {[%emt 0:00:00]} 46. Nxb7 {[%emt 0:00:00]} Qc4+ {[%emt 0:00:00]} 47. Kd2 {[%emt 0:00:00] White threatens Nd6+ and mate.} Qxe6 {[%emt 0:00:00]} 48. Rd3 {[%emt 0:00:00] Re3 is the strong threat.} Qb6 {[%emt 0:00:00]} 49. Nd6+ {[%emt 0:00:00]} Kf8 {[%emt 0:00:00]} 50. Kc3 {[%emt 0:00:07]} Qc5+ {[%emt 0:00:00]} ({Wrong is} 50... a5 $2 51. Nc4 Qb5 52. Kd4 $19) 51. Nc4 {[%emt 0:00:39]} Kg7 {[%emt 0:00:00]} 52. b4 {[%emt 0:00:41]} Qc7 {[%emt 0:00:00][%cal Og6g5]} 53. Kb3 {[%emt 0:00:20]} Qf7 {[%emt 0:01:06][%cal Og6g5]} 54. Kc3 {[%emt 0:00:34]} Qe6 {[%emt 0:00:38]} 55. Re3 {[%emt 0:00:22]} Qd7 {[%emt 0:01:38]} 56. Rd3 {[%emt 0:00:23]} Qc7 {[%emt 0:01:51]} 57. Kb3 {[%emt 0:00:21]} g5 {[%emt 0:01:45]} 58. Nd6 {[%emt 0:02:51] White wants to mate with Ne8+.} Kg6 {[%emt 0:00:27]} 59. hxg5 {[%emt 0:04:12]} fxg5 {[%emt 0:00:27]} 60. Nb5 {[%emt 0:01:41]} (60. fxg5 $142 Qc1 61. Nb5) 60... Qf7+ {[%emt 0:01:27]} 61. Kc3 {[%emt 0:00:05]} gxf4 {[%emt 0:00:29]} 62. gxf4 {[%emt 0:00:04]} h4 {[%emt 0:00:44]} 63. Kd4 {[%emt 0:01:35]} Qd7+ {[%emt 0:00:43]} 64. Kc4 {[%emt 0:00:06]} Qd6 $4 {[%mdl 8192]} 65. Rxd6+ {[%mdl 32768] Weighted Error Value: White=0.60/Black=0.46. Loss on time!?} 0-1

[Event "DPEM German Cup 2022"]
[Site "Magdeburg"]
[Date "2022.08.19"]
[Round "4.8"]
[White "Fuss, Klaus"]
[Black "Schroeder, Torsten"]
[Result "1-0"]
[ECO "A03"]
[WhiteElo "2044"]
[BlackElo "2173"]
[Annotator "NA RC"]
[PlyCount "57"]
[EventDate "2022.08.10"]
[EventType "k.o."]
[EventCountry "GER"]
[SourceTitle "playchess.com"]
[Source "ChessBase"]
[SourceQuality "1"]
[TimeControl "40/5400+30:900+30"]

1. f4 {[%emt 0:00:03]} d5 {[%emt 0:00:51]} 2. Nf3 {[%emt 0:00:14]} c5 {[%emt 0:00:29]} 3. g3 {[%emt 0:00:40]} Nf6 {[%emt 0:00:20]} 4. Bg2 {[%emt 0:00:36]} e6 {[%emt 0:01:50]} 5. d3 {[%emt 0:01:20]} b6 {[%emt 0:02:23]} 6. O-O {[%emt 0:01:24]} Bb7 {[%emt 0:01:25]} 7. e3 {[%emt 0:01:45]} Nbd7 {[%emt 0:00:26]} 8. Qe2 {[%emt 0:01:46]} Be7 {[%emt 0:04:31]} 9. Nc3 {[%emt 0:04:20]} Rc8 {[%emt 0:03:10]} 10. e4 {[%emt 0:02:54]} d4 {[%emt 0:01:18]} 11. Nd1 {[%emt 0:01:33]} Qc7 {[%emt 0:03:36]} 12. Nf2 {[%emt 0:02:43]} Ba6 {[%emt 0:10:18]} 13. c4 {[%emt 0:07:11]} dxc3 {[%emt 0:06:10]} 14. bxc3 {[%emt 0:01:05]} b5 {[%emt 0:02:06]} 15. Bd2 {[%emt 0:11:51]} Nb6 {[%emt 0:02:50]} 16. Rac1 {[%emt 0:07:49]} Na4 {[%emt 0:03:47]} 17. e5 {[%emt 0:10:24]} Nd5 {[%emt 0:00:24]} 18. f5 {[%emt 0:03:52]} Qb6 {[%emt 0:08:07]} 19. fxe6 {[%emt 0:02:21]} fxe6 {[%emt 0:00:14]} 20. Ng5 {[%emt 0:09:40]} Rc7 {[%emt 0:06:40]} 21. c4 {[%emt 0:02:34]} Bxg5 {[%emt 0:06:47]} 22. Qh5+ {[%emt 0:02:50]} g6 {[%emt 0:08:51]} 23. Qxg5 {[%emt 0:00:28]} Ne7 {[%emt 0:01:21]} 24. Ne4 {[%emt 0:02:06]} Rd7 {[%emt 0:13:42]} 25. Nf6+ {[%emt 0:01:29]} Kd8 {[%emt 0:00:02]} 26. Nxd7 {[%emt 0:00:22]} Kxd7 {[%emt 0:00:02]} 27. Rf7 {[%emt 0:01:03]} Re8 {[%emt 0:01:55]} 28. Qf6 {[%emt 0:01:26]} Nb2 {[%emt 0:00:53]} 29. Bg5 {[%emt 0:03:14]} 1-0

[Event "DPEM German Cup 2022"]
[Site "Magdeburg"]
[Date "2022.08.20"]
[Round "5.1"]
[White "Ehmann, Thilo"]
[Black "Mueer, Sebastian"]
[Result "1-0"]
[ECO "B81"]
[WhiteElo "2391"]
[BlackElo "2161"]
[Annotator "TA"]
[PlyCount "75"]
[EventDate "2022.08.10"]
[EventType "k.o."]
[EventCountry "GER"]
[SourceTitle "playchess.com"]
[Source "ChessBase"]
[SourceQuality "1"]
[TimeControl "40/5400+30:900+30"]

{[%evp 15,75,22,40,27,49,42,48,41,60,14,0,0,56,27,30,-28,35,48,77,75,85,93,74,100,105,100,81,66,65,87,250,153,145,143,120,26,0,0,28,24,794,181,175,0,8,8,8,13,175,171,191,191,191,77,1094,1082,978,116,1144,831,29998,29999]} 1. e4 {[%emt 0:00:01]} c5 {[%emt 0:00:57]} 2. Nf3 {[%emt 0:00:04]} d6 {[%emt 0:00:26]} 3. d4 {[%emt 0:00:03]} cxd4 {[%emt 0:00:09]} 4. Nxd4 {[%emt 0:00:02]} Nf6 {[%emt 0:00:10]} 5. Nc3 {[%emt 0:00:03]} a6 {[%emt 0:00:10]} 6. h3 {[%emt 0:01:18]} e6 {[%emt 0:00:38]} 7. g4 {[%emt 0:00:00]} h6 {[%emt 0:00:06]} 8. Bg2 {[%emt 0:00:15]} Qc7 {[%emt 0:02:31]} 9. h4 {[%emt 0:01:47] B81: Sicilian Scheveningen: Keres Attack.} g6 {[%emt 0:06:04]} 10. g5 {[%emt 0:00:40]} hxg5 {[%emt 0:00:07]} 11. Bxg5 {[%emt 0:01:25] White is slightly better.} Nbd7 {[%emt 0:17:10]} 12. Qf3 {[%emt 0:00:31]} (12. Qe2 $14) 12... Bg7 {[%emt 0:00:51]} 13. O-O-O {[%emt 0:00:37] [#]} Rb8 $146 {[%emt 0:04:02]} ({Black should try} 13... Ne5 $11 14. Qe2 Nh5) ({Predecessor:} 13... O-O 14. h5 Ne5 15. Qh3 Nxh5 16. f4 Nc6 17. Nxc6 bxc6 18. Bf3 f6 19. Bxh5 fxg5 20. Bxg6 Rxf4 {½-½ (31) Mazur,S (2435)-Idrizaj,A (2231) Batumi 2019}) 14. Rhe1 {[%emt 0:23:08][%cal Od4b5]} (14. Qh3 $5 {[%cal Rd4e6]}) 14... O-O {[%emt 0:04:12]} 15. Rh1 {[%emt 0:05:08]} ({Better is} 15. Qh3) 15... b5 {[%emt 0:10:35]} (15... Ne5 $11 16. Qh3 Nh5) 16. h5 $14 {[%emt 0:04:35] And now h6 would win.} Ne5 $1 {[%emt 0:00:37]} 17. Qg3 {[%emt 0:06:51] Hoping for h6.} Nxh5 {[%emt 0:06:35]} 18. Qh4 {[%emt 0:05:48]} Re8 {[%emt 0:15:22]} 19. Kb1 {[%emt 0:08:50][%mdl 1024] White has strong compensation.} Bb7 {[%emt 0:00:43]} 20. Nce2 $1 {[%emt 0:05:31]} Rbc8 {[%emt 0:11:46]} 21. Ng3 {[%emt 0:01:27]} f6 {[%emt 0:02:53]} 22. Bc1 {[%emt 0:00:31]} Qf7 $2 {[%emt 0:00:43]} (22... Nxg3 $16 23. Qxg3 (23. fxg3 Qe7 $11) 23... f5) 23. f4 {[%emt 0:02:47][%cal Rg3h5]} Nxg3 {[%emt 0:01:02]} 24. Qxg3 {[%emt 0:00:09]} Nc6 {[%emt 0:00:54]} 25. f5 {[%emt 0:03:58] White is more active.} (25. Nb3 $16) 25... Nxd4 {[%emt 0:01:36]} 26. Rxd4 {[%emt 0:00:06]} exf5 {[%emt 0:03:28]} 27. exf5 {[%emt 0:00:41]} Re2 $2 {[%emt 0:00:01][%mdl 8192]} (27... g5 $11) 28. Bxb7 $2 {[%emt 0:03:11]} (28. fxg6 Qc7 29. Qb3+ d5 30. Bxd5+ Bxd5 31. Qxd5+ Kf8 32. c3) 28... Qxb7 $18 {[%emt 0:00:02]} 29. Rh2 {[%emt 0:00:40]} (29. Qb3+ $1 $18 Kf8 30. fxg6 $1 Rexc2 31. Rxd6 $1) 29... Rcxc2 {[%emt 0:04:12]} 30. Rxe2 {[%emt 0:00:32]} Rxe2 {[%emt 0:00:01]} 31. fxg6 {[%emt 0:00:38]} f5 $2 {[%emt 0:02:19]} (31... d5 $11) 32. Qb3+ {[%emt 0:01:16]} ({Stronger than} 32. Rxd6 Qe4+ 33. Qd3 Qxd3+ 34. Rxd3 Bf6 $11) 32... Kf8 {[%emt 0:00:01]} 33. Rxd6 {[%emt 0:01:09]} Qe4+ {[%emt 0:01:39] [#]} 34. Ka1 {[%emt 0:00:44] Chess con chili.} (34. Rd3 $1 $18 {[%csl Gg6][%cal Rb3f7] is the precise move to win.} Qc4 35. Rd8+ Re8 36. Qa3+ b4 37. Qa5 Qe4+ 38. Ka1) 34... Ke7 {[%emt 0:01:38][%mdl 8192]} (34... Qc4 $16 35. Qd1 Re8) 35. Rd1 {[%emt 0:04:17][%csl Gg6][%cal Rb3f7]} Qc4 {[%emt 0:00:01] [#] Inhibits Qf7+.} 36. Qf3 $2 {[%emt 0:03:05]} (36. Qa3+ $1 $18 Kf6 37. Qxa6+ Re6 38. Qa7 Kxg6 39. Rg1+ Qg4 40. Rxg4+ fxg4 41. Qd7) 36... Ke6 $2 {[%emt 0:04:11][%mdl 8192]} (36... f4 $16 37. Qa8 (37. Qg4 Re6 $16) 37... Bd4 38. Qxa6 Qd5 39. Qa3+ Kf6) 37. Qb7 {[%emt 0:01:16][%csl LRa6,LRg7] White wants to mate with Qb6+.} Qc2 {[%emt 0:00:26]} 38. Qf7+ {[%emt 0:00:28] Weighted Error Value: White=0.64/Black=0.43} 1-0

[Event "DPEM German Cup 2022"]
[Site "Magdeburg"]
[Date "2022.08.20"]
[Round "5.2"]
[White "Noetzel, Felix"]
[Black "Uphoff, Lennart"]
[Result "1-0"]
[ECO "C45"]
[WhiteElo "2124"]
[BlackElo "2173"]
[Annotator "TA"]
[PlyCount "55"]
[EventDate "2022.08.10"]
[EventType "k.o."]
[EventCountry "GER"]
[SourceTitle "playchess.com"]
[Source "ChessBase"]
[SourceQuality "1"]
[TimeControl "40/5400+30:900+30"]

{[%evp 24,55,0,0,0,0,0,0,0,0,0,0,0,-22,-18,-29,-8,-22,-22,-22,23,18,39,41,38,41,124,114,131,125,127,134,398,398]} 1. e4 {[%emt 0:00:03]} e5 {[%emt 0:00:07]} 2. Nf3 {[%emt 0:00:05]} Nc6 {[%emt 0:00:04]} 3. d4 {[%emt 0:00:06]} exd4 {[%emt 0:00:05]} 4. Nxd4 {[%emt 0:00:04]} Nf6 {[%emt 0:00:08]} 5. Nxc6 {[%emt 0:00:12]} bxc6 {[%emt 0:00:08]} 6. e5 {[%emt 0:00:06]} Qe7 {[%emt 0:00:04]} 7. Qe2 {[%emt 0:00:06]} Nd5 {[%emt 0:00:06]} 8. c4 {[%emt 0:00:10]} Ba6 {[%emt 0:00:13]} 9. b3 {[%emt 0:00:12]} g6 {[%emt 0:01:00]} 10. g3 {[%emt 0:00:26]} Bg7 {[%emt 0:00:31]} 11. Bb2 {[%emt 0:00:11]} O-O {[%emt 0:01:18]} 12. Bg2 {[%emt 0:00:11]} Rae8 {[%emt 0:00:40]} 13. O-O $1 {[%emt 0:00:32]} Bxe5 {[%emt 0:01:09] C45: Scotch Game.} 14. Qxe5 {[%emt 0:00:06]} Qxe5 {[%emt 0:00:06]} 15. Bxe5 {[%emt 0:00:04]} Rxe5 {[%emt 0:00:06] The position is equal.} 16. cxd5 {[%emt 0:00:04] [#] Rd1 is the strong threat.} Bxf1 {[%emt 0:00:08]} 17. Kxf1 {[%emt 0:00:04]} cxd5 {[%emt 0:00:09]} 18. Nc3 {[%emt 0:00:06]} (18. f4 $5 {[%cal Rf4e5]} Re3 19. Bxd5 $11) 18... c6 {[%emt 0:02:41]} 19. Rd1 {[%emt 0:00:04] 19.Rd1 scores better than 19.Na4.} f5 {[%emt 0:24:24]} 20. Ne2 {[%emt 0:14:17]} Rfe8 {[%emt 0:10:43]} 21. Bf3 {[%emt 0:00:55]} Kf7 {[%emt 0:06:39]} 22. Rd4 {[%emt 0:01:17][%mdl 1024] White has compensation.} Rb8 {[%emt 0:14:57]} 23. Ra4 {[%emt 0:08:02]} Rb7 {[%emt 0:02:23] [#]} 24. Nf4 $146 {[%emt 0:03:18]} ({Predecessor:} 24. b4 Re8 25. Nd4 Reb8 26. a3 Kf6 27. Nb3 Re8 28. Ra6 Ke7 29. Ke2 Kd6+ 30. Kd2 {1-0 (52) Szalontay,M (2066)-Pajeken,J (1703) Reykjavik 2014}) 24... Re8 {[%emt 0:02:56] [#]} (24... g5 $14 25. Nd3 Re7) 25. Nxd5 $1 $16 {[%emt 0:03:03][%mdl 512]} Re5 {[%emt 0:03:34]} (25... a5 26. Ne3) 26. Nf4 {[%emt 0:07:22] White is more active.} Rc5 {[%emt 0:01:37]} 27. Nd3 {[%emt 0:00:48]} Rc2 {[%emt 0:01:22][%mdl 8192]} (27... Rcb5 $16 {might work better.} 28. Rh4 Kg7) 28. Ke1 {[%emt 0:01:18] Weighted Error Value: White=0.05 (flawless) /Black=0.39} 1-0

[Event "DPEM German Cup 2022"]
[Site "Magdeburg"]
[Date "2022.08.20"]
[Round "5.3"]
[White "Woelk, Tom-Frederic"]
[Black "Chassard, Cedric"]
[Result "1-0"]
[ECO "E20"]
[WhiteElo "2314"]
[BlackElo "2010"]
[Annotator "TA"]
[PlyCount "81"]
[EventDate "2022.08.10"]
[EventType "k.o."]
[EventCountry "GER"]
[SourceTitle "playchess.com"]
[Source "ChessBase"]
[SourceQuality "1"]
[TimeControl "40/5400+30:900+30"]

{[%evp 9,81,-8,-15,-5,9,8,19,8,6,15,0,1,16,0,7,4,0,14,27,18,28,-4,0,14,138,136,149,132,165,-119,-46,-50,41,31,172,185,155,181,162,152,151,103,117,61,58,40,64,80,137,132,167,168,172,187,225,212,344,279,287,281,400,377,578,577,549,506,504,424,861,848,856,849,4921,982]} 1. d4 {[%emt 0:00:03][%cal Bd2d4,Bd4d5][%mdl 32]} Nf6 {[%emt 0:00:07]} 2. c4 {[%emt 0:00:03]} e6 {[%emt 0:00:05]} 3. Nc3 {[%emt 0:00:13]} Bb4 {[%emt 0:00:06]} 4. f3 {[%emt 0:00:02]} c5 {[%emt 0:00:15]} 5. d5 {[%emt 0:00:03]} b5 {[%emt 0:00:16]} 6. e4 {[%emt 0:00:04] E20: Nimzo-Indian: 4 g3 and 4 f3.} O-O {[%emt 0:00:15] 6...d6 gains popularity.} 7. Nh3 {[%emt 0:00:09]} (7. cxb5 exd5 8. exd5 Re8+ 9. Kf2 d6 $15) 7... bxc4 {[%emt 0:00:28]} 8. Bxc4 {[%emt 0:00:05] The position is equal.} exd5 {[%emt 0:00:08]} 9. Bxd5 {[%emt 0:00:06]} Nxd5 {[%emt 0:00:03]} 10. Qxd5 {[%emt 0:00:07]} Ba6 {[%emt 0:00:12]} 11. Bf4 {[%emt 0:00:38]} (11. Qxa8 Bxc3+ 12. bxc3 Qh4+ 13. Kd1 Nc6 14. Qxf8+ (14. Bg5 Qh5 $17) 14... Kxf8 $17) 11... Nc6 {[%emt 0:00:40]} 12. Kf2 {[%emt 0:02:49]} Ba5 {[%emt 0:00:40]} 13. Rhd1 {[%emt 0:05:25]} Nb4 {[%emt 0:00:17]} 14. Qd6 {[%emt 0:16:13]} Bb6 {[%emt 0:00:07][%cal Ob4d3]} 15. Kg3 {[%emt 0:04:16]} Nc2 {[%emt 0:26:08]} 16. Rac1 {[%emt 0:08:03] [#]} Ne3 $146 {[%emt 0:02:03]} ({Predecessor:} 16... Nd4 17. Kf2 Re8 18. Na4 Ne2 19. Rc2 Nxf4 20. Nxf4 Bc7 21. Qxa6 Qh4+ 22. g3 Qxh2+ {0-1 (58) Bobkov,V (2341)-Drygalov,S (2500) Cheliabinsk 2021}) 17. Re1 $1 $16 {[%emt 0:05:59] Active counter play!} (17. Bxe3 $2 Bc7 18. Bxc5 Re8 $19) 17... Nc4 {[%emt 0:00:59]} 18. Qd3 {[%emt 0:00:09]} Qf6 {[%emt 0:17:52]} 19. b3 $2 {[%emt 0:08:38] [#]} ({Only move:} 19. Nd5 $18 Qd4 20. Qxd4 cxd4 21. b3) 19... Bd8 {[%emt 0:00:31]} 20. Bg5 $1 $15 {[%emt 0:05:05]} Bc7+ {[%emt 0:17:00]} (20... Nb2 $1 $15 21. Qc2 (21. Qxd7 Qg6 $17) 21... Qg6 22. Qxb2 f6) 21. f4 $14 {[%emt 0:08:49]} Nb2 {[%emt 0:08:24]} (21... Qd4 $1 $14 22. Qxd4 cxd4) 22. Qd2 $36 {[%emt 0:10:32][%mdl 2048] Keeping Black busy.} ({But not} 22. Qxd7 Qd6 23. Qxd6 Bxd6 $16) 22... Bxf4+ {[%emt 0:01:25]} 23. Qxf4 {[%emt 0:01:18]} Qe6 {[%emt 0:00:38]} 24. Qf5 {[%emt 0:06:02]} Nd3 {[%emt 0:02:19]} 25. Qxe6 {[%emt 0:02:42]} ({White should play} 25. Red1) 25... dxe6 {[%emt 0:00:46] [#]} 26. Na4 {[%emt 0:02:11]} (26. Nf2 $1 $16 {Hoping for Nxd3.} Nxe1 27. Rxe1) 26... c4 $14 {[%emt 0:02:20] [#]} 27. b4 $1 {[%emt 0:00:27]} Nxe1 {[%emt 0:02:36]} (27... Bb5 28. Nc3) 28. Rxe1 {[%emt 0:00:05]} f6 {[%emt 0:00:32]} (28... Bb5 $142 29. Nc3 Rfb8) 29. Be3 $16 {[%emt 0:00:15]} Rfd8 {[%emt 0:00:11]} 30. Nc5 {[%emt 0:00:34][%csl LRa6,LRe6] Inhibits Rd3. Pair of Knights!} Bc8 {[%emt 0:00:45]} 31. Rc1 {[%emt 0:01:15]} Bd7 {[%emt 0:01:39]} 32. Rxc4 {[%emt 0:01:12]} a5 {[%emt 0:00:26]} (32... Be8 $142 33. a4 (33. Nxe6 Rd3 $16) 33... e5) 33. bxa5 {[%emt 0:04:42]} Bb5 {[%emt 0:08:51]} 34. Rb4 {[%emt 0:02:25]} Bc6 {[%emt 0:00:46]} (34... Be8 $142 35. a6 e5) 35. Rb6 $18 {[%emt 0:02:32]} Bxe4 {[%emt 0:01:57]} (35... Rdc8 $142 36. a6 (36. Nxe6 Rxa5 37. Nf2 Ra3 $16) 36... Rab8) 36. Nxe4 {[%emt 0:00:10] White is clearly winning.} Rxa5 {[%emt 0:00:01]} 37. Rxe6 {[%emt 0:01:05]} Rxa2 {[%emt 0:00:43]} 38. Re7 {[%emt 0:00:33] aiming for Nf4.} h5 {[%emt 0:01:35]} (38... Raa8 $142 39. Kf3 Re8) 39. Nf4 {[%emt 0:00:29]} h4+ {[%emt 0:01:10]} 40. Kf3 {[%emt 0:01:04]} Rc8 {[%emt 0:01:52]} 41. Nh5 {[%emt 0:00:35] Weighted Error Value: White=0.24 (precise) /Black=0.39} 1-0

[Event "DPEM German Cup 2022"]
[Site "Magdeburg"]
[Date "2022.08.20"]
[Round "5.4"]
[White "Malinowsky, Levi"]
[Black "Tiarks, Jann-Christian"]
[Result "1/2-1/2"]
[ECO "B11"]
[WhiteElo "1814"]
[BlackElo "2196"]
[Annotator "TA"]
[PlyCount "61"]
[EventDate "2022.08.10"]
[EventType "k.o."]
[EventCountry "GER"]
[SourceTitle "playchess.com"]
[Source "ChessBase"]
[SourceQuality "1"]
[TimeControl "40/5400+30:900+30"]

{[%evp 11,61,0,28,23,27,13,27,12,19,-8,35,38,34,11,13,-4,-21,-21,0,-67,14,8,124,120,115,118,116,-55,66,68,70,0,0,0,0,0,0,0,0,0,0,0,0,0,0,0,0,0,0,0,0,0]} 1. e4 {[%emt 0:00:03]} c6 {[%emt 0:00:10]} 2. Nc3 {[%emt 0:00:21]} d5 {[%emt 0:00:13]} 3. Nf3 {[%emt 0:00:06]} Bg4 {[%emt 0:00:10]} 4. h3 {[%emt 0:01:09]} Bxf3 {[%emt 0:00:09]} 5. Qxf3 {[%emt 0:00:07]} e6 {[%emt 0:00:07]} 6. d4 {[%emt 0:03:38]} dxe4 {[%emt 0:00:12]} 7. Qxe4 {[%emt 0:00:39] B11: Caro-Kann: Two Knights Variation.} Nf6 {[%emt 0:00:49]} 8. Qd3 {[%emt 0:01:35]} Nbd7 {[%emt 0:03:51]} 9. Bf4 {[%emt 0:03:03] White has an edge.} Qa5 {[%emt 0:03:08]} 10. Bd2 {[%emt 0:04:12] [#]} Qb6 $146 {[%emt 0:09:01]} ({Predecessor:} 10... Qc7 11. Be2 Bd6 12. O-O-O O-O-O 13. Be3 Nb6 14. Ne4 Nxe4 15. Qxe4 Nd5 16. Rhe1 Qa5 17. Kb1 Bb4 18. Rf1 Qb6 19. Rd3 {0-1 (59) Batory,L (1692)-Kaplan,J (1916) Sv Filip i Jakov 2018}) 11. O-O-O {[%emt 0:02:47]} O-O-O {[%emt 0:00:55][%cal Od7e5]} 12. Bf4 {[%emt 0:02:56] Inhibits Ne5.} Bb4 {[%emt 0:02:41]} 13. Na4 {[%emt 0:05:17]} Qa5 {[%emt 0:01:35]} 14. Qb3 {[%emt 0:04:43]} Ne4 {[%emt 0:01:40]} (14... Nd5 $5 {[%cal Rd5f4]} 15. Bg5 f6 $15) 15. c3 {[%emt 0:03:46]} (15. Be3 $11) 15... Be7 {[%emt 0:06:00]} ({Black should try} 15... Bd6 $15 16. Bxd6 Nxd6) 16. Qc2 $1 $11 {[%emt 0:10:25]} Nxf2 {[%emt 0:09:33]} 17. b4 $16 {[%emt 0:02:14]} Bxb4 {[%emt 0:00:59]} 18. cxb4 {[%emt 0:01:19]} Qxb4 {[%emt 0:00:10]} 19. Ba6 $2 {[%emt 0:12:07] [#]} (19. Qxf2 $16 Qxa4 20. Qc2) 19... c5 $1 {[%emt 0:05:18]} 20. Qxf2 $14 {[%emt 0:02:51][%cal Of2f3] Dancing on a razor blade.} Qxa4 {[%emt 0:00:14]} 21. Be2 {[%emt 0:02:34] White is more active.} (21. Bd3 $14) 21... Qxa2 {[%emt 0:01:20] The position is equal.} 22. dxc5 {[%emt 0:01:10]} Qa1+ {[%emt 0:04:32]} 23. Kc2 {[%emt 0:00:22]} Qa4+ {[%emt 0:03:31]} 24. Kb2 {[%emt 0:01:59]} Qb4+ {[%emt 0:00:51]} 25. Ka2 {[%emt 0:02:31]} Qa4+ {[%emt 0:02:06]} 26. Kb2 {[%emt 0:00:11] [#] Threatens to win with Rd3.} Qb4+ {[%emt 0:00:10]} 27. Ka2 {[%emt 0:00:08]} Qa4+ {[%emt 0:00:15]} 28. Kb2 {[%emt 0:00:11] Black must now prevent Rd4.} Qb4+ {[%emt 0:00:06]} 29. Ka2 {[%emt 0:00:05]} Qa4+ {[%emt 0:00:08]} 30. Kb2 {[%emt 0:00:07] aiming for Rd4.} Qb4+ {[%emt 0:00:03]} 31. Ka2 {[%emt 0:00:06] Weighted Error Value: White=0.24 (precise) /Black=0.26 (precise)} 1/2-1/2